[Event "Early-Titled-Tuesday-Blitz-February-27-2024"]
[Site "Chess.com"]
[Date "2024.02.27"]
[Round "2"]
[White "As0nchess"]
[Black "Knightmare1014"]
[Result "1-0"]
[WhiteElo "2536"]
[BlackElo "2300"]
[TimeControl "180+1"]
[EndTime "8:14:46 PST"]
[Termination "As0nchess won by resignation"]

1. e4 {[%clk 0:03:00.9]} 1... c5 {[%clk 0:02:59.7]} 2. Nf3 {[%clk 0:03:00.7]}
2... e6 {[%clk 0:02:59.6]} 3. d4 {[%clk 0:03:01.2]} 3... cxd4 {[%clk 0:03:00.5]}
4. Nxd4 {[%clk 0:03:01.9]} 4... a6 {[%clk 0:03:01]} 5. c4 {[%clk 0:03:01.7]}
5... Nf6 {[%clk 0:02:59.4]} 6. Nc3 {[%clk 0:03:02.4]} 6... Bb4 {[%clk
0:02:59.3]} 7. Qd3 {[%clk 0:03:01.7]} 7... d5 {[%clk 0:02:56]} 8. exd5 {[%clk
0:03:01.7]} 8... exd5 {[%clk 0:02:55.8]} 9. Be2 {[%clk 0:03:02.2]} 9... O-O
{[%clk 0:02:39.8]} 10. O-O {[%clk 0:03:00.9]} 10... Nc6 {[%clk 0:02:22.2]} 11.
Nxc6 {[%clk 0:03:00.5]} 11... bxc6 {[%clk 0:02:22]} 12. cxd5 {[%clk 0:03:00.8]}
12... cxd5 {[%clk 0:02:20.6]} 13. Be3 {[%clk 0:02:57.6]} 13... Bb7 {[%clk
0:02:14.9]} 14. Bd4 {[%clk 0:02:54.2]} 14... a5 {[%clk 0:02:06.2]} 15. Rfd1
{[%clk 0:02:51.2]} 15... Ba6 {[%clk 0:02:04.1]} 16. Qd2 {[%clk 0:02:46.6]} 16...
Ne4 {[%clk 0:02:01.5]} 17. Qe3 {[%clk 0:02:45.1]} 17... Re8 {[%clk 0:01:51.5]}
18. Bxa6 {[%clk 0:02:25.7]} 18... Nxc3 {[%clk 0:01:48.4]} 19. Qg3 {[%clk
0:02:25.3]} 19... Ne2+ {[%clk 0:01:37.8]} 20. Bxe2 {[%clk 0:02:24.5]} 20... f6
{[%clk 0:01:28.4]} 21. Bf3 {[%clk 0:02:23.2]} 21... Rc8 {[%clk 0:01:23.7]} 22.
h4 {[%clk 0:02:21]} 22... Kh8 {[%clk 0:01:22.6]} 23. h5 {[%clk 0:02:20.6]} 23...
h6 {[%clk 0:01:18.6]} 24. Qg6 {[%clk 0:02:18.8]} 24... Re7 {[%clk 0:01:08.8]}
25. a3 {[%clk 0:02:18.3]} 25... Bd6 {[%clk 0:01:08]} 26. Rac1 {[%clk 0:02:16.6]}
26... Rxc1 {[%clk 0:01:06.7]} 27. Rxc1 {[%clk 0:02:16.5]} 27... Rc7 {[%clk
0:01:05.9]} 28. Rxc7 {[%clk 0:02:15.4]} 28... Qxc7 {[%clk 0:01:06.1]} 29. g3
{[%clk 0:02:13.7]} 29... Qd7 {[%clk 0:00:54.1]} 30. Kg2 {[%clk 0:02:13]} 30...
Bc7 {[%clk 0:00:52.4]} 31. Bg4 {[%clk 0:02:12.2]} 31... Qd8 {[%clk 0:00:51.2]}
32. Bf5 {[%clk 0:02:12.2]} 32... Qg8 {[%clk 0:00:51]} 33. Bxf6 {[%clk
0:02:08.4]} 33... gxf6 {[%clk 0:00:48.5]} 34. Qxh6+ {[%clk 0:02:08.5]} 1-0

[Event "Early-Titled-Tuesday-Blitz-February-27-2024"]
[Site "Chess.com"]
[Date "2024.02.27"]
[Round "2"]
[White "gpsji27"]
[Black "SergioMoralesG"]
[Result "1-0"]
[WhiteElo "2355"]
[BlackElo "2539"]
[TimeControl "180+1"]
[EndTime "8:14:56 PST"]
[Termination "gpsji27 won by resignation"]

1. d4 {[%clk 0:03:00.9]} 1... d5 {[%clk 0:02:57.9]} 2. Nf3 {[%clk 0:02:59.3]}
2... Nf6 {[%clk 0:02:57.3]} 3. Bg5 {[%clk 0:02:58.6]} 3... Nbd7 {[%clk
0:02:56.8]} 4. Nbd2 {[%clk 0:02:55.9]} 4... h6 {[%clk 0:02:57]} 5. Bh4 {[%clk
0:02:55.5]} 5... c5 {[%clk 0:02:57.7]} 6. e3 {[%clk 0:02:55.7]} 6... e6 {[%clk
0:02:57.8]} 7. c3 {[%clk 0:02:49.7]} 7... Be7 {[%clk 0:02:54.1]} 8. Bd3 {[%clk
0:02:37.8]} 8... O-O {[%clk 0:02:53.4]} 9. O-O {[%clk 0:02:30.2]} 9... b6 {[%clk
0:02:52.8]} 10. Re1 {[%clk 0:02:21.1]} 10... Bb7 {[%clk 0:02:52.5]} 11. Ne5
{[%clk 0:02:19]} 11... Nxe5 {[%clk 0:02:52.2]} 12. dxe5 {[%clk 0:02:19.9]} 12...
Nd7 {[%clk 0:02:52.7]} 13. Bxe7 {[%clk 0:02:20]} 13... Qxe7 {[%clk 0:02:53.3]}
14. f4 {[%clk 0:02:20.6]} 14... f6 {[%clk 0:02:52.9]} 15. exf6 {[%clk
0:02:18.1]} 15... Qxf6 {[%clk 0:02:51.7]} 16. Nf3 {[%clk 0:02:17.2]} 16... e5
{[%clk 0:02:51.8]} 17. fxe5 {[%clk 0:02:13.9]} 17... Nxe5 {[%clk 0:02:52]} 18.
Nxe5 {[%clk 0:02:13.6]} 18... Qxe5 {[%clk 0:02:52.4]} 19. Qc2 {[%clk 0:02:13.8]}
19... Rae8 {[%clk 0:02:51.5]} 20. Rad1 {[%clk 0:02:13.4]} 20... Rf6 {[%clk
0:02:50.7]} 21. c4 {[%clk 0:01:59.4]} 21... d4 {[%clk 0:02:48.5]} 22. e4 {[%clk
0:01:52.1]} 22... Ref8 {[%clk 0:02:45.9]} 23. Rf1 {[%clk 0:01:46.5]} 23... Rxf1+
{[%clk 0:02:43.6]} 24. Rxf1 {[%clk 0:01:47.4]} 24... Rxf1+ {[%clk 0:02:43.8]}
25. Kxf1 {[%clk 0:01:46.3]} 25... Qxh2 {[%clk 0:02:43.6]} 26. Qf2 {[%clk
0:01:28.6]} 26... Qe5 {[%clk 0:02:36.3]} 27. Qf3 {[%clk 0:01:23.8]} 27... Bc8
{[%clk 0:02:34.7]} 28. Kg1 {[%clk 0:01:12.6]} 28... Be6 {[%clk 0:02:32.5]} 29.
b3 {[%clk 0:01:11.8]} 29... Qg5 {[%clk 0:02:23.1]} 30. Qf2 {[%clk 0:00:47]}
30... Qf6 {[%clk 0:02:13.3]} 31. Qg3 {[%clk 0:00:43.9]} 31... Bf7 {[%clk
0:02:03.6]} 32. Qb8+ {[%clk 0:00:34.8]} 32... Kh7 {[%clk 0:02:02.1]} 33. e5+
{[%clk 0:00:35.1]} 33... Qg6 {[%clk 0:02:00.4]} 34. Bxg6+ {[%clk 0:00:35]} 34...
Bxg6 {[%clk 0:02:01.3]} 35. e6 {[%clk 0:00:34.6]} 1-0

[Event "Early-Titled-Tuesday-Blitz-February-27-2024"]
[Site "Chess.com"]
[Date "2024.02.27"]
[Round "2"]
[White "Fjal"]
[Black "Marcin"]
[Result "1-0"]
[WhiteElo "2249"]
[BlackElo "2485"]
[TimeControl "180+1"]
[EndTime "8:14:57 PST"]
[Termination "Fjal won by resignation"]

1. Nf3 {[%clk 0:02:59.3]} 1... d5 {[%clk 0:02:58.2]} 2. g3 {[%clk 0:03:00.2]}
2... Nf6 {[%clk 0:02:58]} 3. Bg2 {[%clk 0:03:00.6]} 3... c5 {[%clk 0:02:58.2]}
4. O-O {[%clk 0:03:01.1]} 4... e6 {[%clk 0:02:58.5]} 5. d3 {[%clk 0:03:01]} 5...
Be7 {[%clk 0:02:57.8]} 6. Nbd2 {[%clk 0:03:01.9]} 6... O-O {[%clk 0:02:58.4]} 7.
e4 {[%clk 0:03:02.8]} 7... b6 {[%clk 0:02:57.7]} 8. e5 {[%clk 0:03:03.2]} 8...
Nfd7 {[%clk 0:02:57.6]} 9. Re1 {[%clk 0:03:03.7]} 9... Nc6 {[%clk 0:02:57.9]}
10. Nf1 {[%clk 0:03:04.3]} 10... Qc7 {[%clk 0:02:56.9]} 11. Bf4 {[%clk
0:03:04.3]} 11... h6 {[%clk 0:02:52.1]} 12. h4 {[%clk 0:03:04]} 12... a5 {[%clk
0:02:51.6]} 13. N1h2 {[%clk 0:03:04.3]} 13... a4 {[%clk 0:02:51.8]} 14. a3
{[%clk 0:03:04.1]} 14... Re8 {[%clk 0:02:51.4]} 15. c3 {[%clk 0:03:02.8]} 15...
b5 {[%clk 0:02:50.2]} 16. Qd2 {[%clk 0:03:02.7]} 16... Bf8 {[%clk 0:02:50.3]}
17. Ng4 {[%clk 0:03:03.1]} 17... b4 {[%clk 0:02:48.9]} 18. Bxh6 {[%clk
0:03:02.7]} 18... gxh6 {[%clk 0:02:46.8]} 19. Nxh6+ {[%clk 0:03:03.6]} 19...
Bxh6 {[%clk 0:02:33]} 20. Qxh6 {[%clk 0:03:04.5]} 20... Nf8 {[%clk 0:02:30.9]}
21. Nh2 {[%clk 0:02:24.8]} 21... Nxe5 {[%clk 0:02:22.4]} 22. Rxe5 {[%clk
0:02:24.1]} 22... Qxe5 {[%clk 0:02:22.4]} 23. Ng4 {[%clk 0:02:24.8]} 23... Qg7
{[%clk 0:02:12.4]} 24. Nf6+ {[%clk 0:02:24.8]} 24... Qxf6 {[%clk 0:02:12.8]} 25.
Qxf6 {[%clk 0:02:25.3]} 25... bxc3 {[%clk 0:02:10]} 26. bxc3 {[%clk 0:02:21]}
26... Ba6 {[%clk 0:02:08.5]} 27. h5 {[%clk 0:02:15.4]} 27... Nh7 {[%clk
0:02:07.6]} 28. Qf3 {[%clk 0:02:05.9]} 28... f5 {[%clk 0:01:54.3]} 29. Re1
{[%clk 0:02:01.5]} 29... Rab8 {[%clk 0:01:51.8]} 30. g4 {[%clk 0:01:52.4]} 30...
fxg4 {[%clk 0:01:38.5]} 31. Qxg4+ {[%clk 0:01:53.3]} 31... Kh8 {[%clk
0:01:38.9]} 32. d4 {[%clk 0:01:34.4]} 32... cxd4 {[%clk 0:01:35]} 33. Qxd4+
{[%clk 0:01:35.3]} 33... Kg8 {[%clk 0:01:33.9]} 34. Qg4+ {[%clk 0:01:35.4]}
34... Kh8 {[%clk 0:01:34.2]} 35. Rxe6 {[%clk 0:01:34.7]} 35... Bc4 {[%clk
0:01:25.5]} 36. Rxe8+ {[%clk 0:01:16.2]} 36... Rxe8 {[%clk 0:01:25.2]} 37. h6
{[%clk 0:01:16.8]} 1-0

[Event "Early-Titled-Tuesday-Blitz-February-27-2024"]
[Site "Chess.com"]
[Date "2024.02.27"]
[Round "2"]
[White "Ticoluis"]
[Black "dianamirza"]
[Result "1-0"]
[WhiteElo "2454"]
[BlackElo "1998"]
[TimeControl "180+1"]
[EndTime "8:14:57 PST"]
[Termination "Ticoluis won by checkmate"]

1. e4 {[%clk 0:03:00.9]} 1... d5 {[%clk 0:02:59.8]} 2. exd5 {[%clk 0:02:59.2]}
2... Qxd5 {[%clk 0:03:00.7]} 3. Nc3 {[%clk 0:02:58.8]} 3... Qd8 {[%clk
0:03:00.4]} 4. d4 {[%clk 0:02:59.3]} 4... Nf6 {[%clk 0:02:56]} 5. Nf3 {[%clk
0:02:59.9]} 5... g6 {[%clk 0:02:50.1]} 6. Bd3 {[%clk 0:02:59.4]} 6... Bg7 {[%clk
0:02:50.5]} 7. h4 {[%clk 0:02:59.6]} 7... O-O {[%clk 0:02:51.3]} 8. h5 {[%clk
0:02:59.4]} 8... Nc6 {[%clk 0:02:51.5]} 9. hxg6 {[%clk 0:02:57.4]} 9... fxg6
{[%clk 0:02:49.6]} 10. Bg5 {[%clk 0:02:53.4]} 10... Bg4 {[%clk 0:02:24.7]} 11.
Ne2 {[%clk 0:02:40.4]} 11... Bxf3 {[%clk 0:02:14.7]} 12. gxf3 {[%clk 0:02:37.5]}
12... Nxd4 {[%clk 0:02:13.1]} 13. Bc4+ {[%clk 0:02:32.2]} 13... Kh8 {[%clk
0:02:01.2]} 14. Qxd4 {[%clk 0:02:21.5]} 14... Qc8 {[%clk 0:01:39.5]} 15. Qh4
{[%clk 0:02:12.2]} 15... Nh5 {[%clk 0:01:36]} 16. Ng3 {[%clk 0:02:02.7]} 16...
h6 {[%clk 0:00:57.8]} 17. Nxh5 {[%clk 0:01:57.9]} 17... hxg5 {[%clk 0:00:46.6]}
18. Qxg5 {[%clk 0:01:55.9]} 18... Bc3+ {[%clk 0:00:14.6]} 19. bxc3 {[%clk
0:01:53.4]} 19... Rf5 {[%clk 0:00:05.7]} 20. Qh6# {[%clk 0:01:49]} 1-0

[Event "Early-Titled-Tuesday-Blitz-February-27-2024"]
[Site "Chess.com"]
[Date "2024.02.27"]
[Round "2"]
[White "Klavdia_Nik"]
[Black "LyonBeast"]
[Result "0-1"]
[WhiteElo "2134"]
[BlackElo "3138"]
[TimeControl "180+1"]
[EndTime "8:15:04 PST"]
[Termination "LyonBeast won by resignation"]

1. Nf3 {[%clk 0:02:58.8]} 1... f5 {[%clk 0:02:59]} 2. c4 {[%clk 0:02:52.9]} 2...
Nf6 {[%clk 0:02:57.8]} 3. b3 {[%clk 0:02:46.3]} 3... g6 {[%clk 0:02:57.6]} 4.
Bb2 {[%clk 0:02:45.1]} 4... Bg7 {[%clk 0:02:58.3]} 5. g3 {[%clk 0:02:33.6]} 5...
O-O {[%clk 0:02:58.1]} 6. Bg2 {[%clk 0:02:22.1]} 6... d6 {[%clk 0:02:55.8]} 7.
d4 {[%clk 0:01:52.5]} 7... c6 {[%clk 0:02:53.5]} 8. O-O {[%clk 0:01:50.7]} 8...
Nbd7 {[%clk 0:02:52.3]} 9. d5 {[%clk 0:01:23.7]} 9... cxd5 {[%clk 0:02:36.3]}
10. cxd5 {[%clk 0:01:24.6]} 10... Nc5 {[%clk 0:02:35.9]} 11. Nbd2 {[%clk
0:01:18.6]} 11... Bd7 {[%clk 0:02:35]} 12. Nd4 {[%clk 0:01:09.8]} 12... Rc8
{[%clk 0:02:32.7]} 13. Rc1 {[%clk 0:00:45.8]} 13... Qb6 {[%clk 0:02:30.7]} 14.
Nc4 {[%clk 0:00:37.1]} 14... Qa6 {[%clk 0:02:31]} 15. a3 {[%clk 0:00:35.4]}
15... Nce4 {[%clk 0:02:28.2]} 16. f3 {[%clk 0:00:27.4]} 16... Nc5 {[%clk
0:02:27.1]} 17. Re1 {[%clk 0:00:18.4]} 17... Nxd5 {[%clk 0:02:24.1]} 18. Nxf5
{[%clk 0:00:16.9]} 18... Rxf5 {[%clk 0:02:13.2]} 19. Bxg7 {[%clk 0:00:14.7]}
19... Kxg7 {[%clk 0:02:13.2]} 20. e4 {[%clk 0:00:15.2]} 20... Rf7 {[%clk
0:02:08.4]} 21. exd5 {[%clk 0:00:15.1]} 21... Kg8 {[%clk 0:01:58.6]} 22. Qd4
{[%clk 0:00:14.8]} 22... Nxb3 {[%clk 0:01:58.2]} 23. Qh4 {[%clk 0:00:09.8]}
23... Nxc1 {[%clk 0:01:57.8]} 0-1

[Event "Early-Titled-Tuesday-Blitz-February-27-2024"]
[Site "Chess.com"]
[Date "2024.02.27"]
[Round "2"]
[White "HPanesso"]
[Black "Quattroporte300"]
[Result "0-1"]
[WhiteElo "2629"]
[BlackElo "2408"]
[TimeControl "180+1"]
[EndTime "8:15:15 PST"]
[Termination "Quattroporte300 won by resignation"]

1. d4 {[%clk 0:02:53.4]} 1... d5 {[%clk 0:02:57.9]} 2. Bf4 {[%clk 0:02:53.3]}
2... c6 {[%clk 0:02:55.4]} 3. Nc3 {[%clk 0:02:52.6]} 3... Nf6 {[%clk 0:02:56.1]}
4. e3 {[%clk 0:02:52.5]} 4... Qb6 {[%clk 0:02:48.5]} 5. Rb1 {[%clk 0:02:49.8]}
5... Bf5 {[%clk 0:02:46.4]} 6. Bd3 {[%clk 0:02:49.5]} 6... e6 {[%clk 0:02:42.8]}
7. Bxf5 {[%clk 0:02:49.5]} 7... exf5 {[%clk 0:02:42.6]} 8. Qd3 {[%clk
0:02:49.8]} 8... g6 {[%clk 0:02:42.9]} 9. h4 {[%clk 0:02:49.1]} 9... Bg7 {[%clk
0:02:42.6]} 10. Nge2 {[%clk 0:02:46.7]} 10... Nbd7 {[%clk 0:02:42.5]} 11. Ng3
{[%clk 0:02:46.9]} 11... h5 {[%clk 0:02:41.2]} 12. b4 {[%clk 0:02:43]} 12... O-O
{[%clk 0:02:33.8]} 13. f3 {[%clk 0:02:42.9]} 13... Rfe8 {[%clk 0:02:33]} 14. O-O
{[%clk 0:02:39.2]} 14... Re6 {[%clk 0:02:28.9]} 15. Kh2 {[%clk 0:02:29.1]} 15...
Ne8 {[%clk 0:02:27.5]} 16. a4 {[%clk 0:02:22.8]} 16... Nd6 {[%clk 0:02:21.5]}
17. a5 {[%clk 0:02:21.1]} 17... Qd8 {[%clk 0:02:21.5]} 18. Bg5 {[%clk
0:02:20.6]} 18... Qe8 {[%clk 0:02:09]} 19. Rbe1 {[%clk 0:02:13.6]} 19... b6
{[%clk 0:02:02.4]} 20. e4 {[%clk 0:02:02.8]} 20... dxe4 {[%clk 0:01:46.4]} 21.
fxe4 {[%clk 0:02:03.7]} 21... fxe4 {[%clk 0:01:46.5]} 22. Ncxe4 {[%clk
0:02:01.8]} 22... Nxe4 {[%clk 0:01:41.4]} 23. Rxe4 {[%clk 0:02:02.7]} 23... f5
{[%clk 0:01:39.1]} 24. Rxe6 {[%clk 0:01:57.7]} 24... Qxe6 {[%clk 0:01:40]} 25.
c4 {[%clk 0:01:42.2]} 25... Qd6 {[%clk 0:01:29.5]} 26. Rd1 {[%clk 0:01:21.6]}
26... Qxb4 {[%clk 0:01:23]} 27. a6 {[%clk 0:01:21.7]} 27... Qd6 {[%clk
0:01:20.3]} 28. d5 {[%clk 0:01:21.2]} 28... Ne5 {[%clk 0:01:18.1]} 29. Qb3
{[%clk 0:01:17.3]} 29... Ng4+ {[%clk 0:01:18.4]} 30. Kh3 {[%clk 0:01:04.3]}
30... Nf2+ {[%clk 0:01:15.2]} 31. Kh2 {[%clk 0:01:04.8]} 31... Nxd1 {[%clk
0:01:15.8]} 32. Qxd1 {[%clk 0:01:05.3]} 32... cxd5 {[%clk 0:01:16.2]} 33. cxd5
{[%clk 0:01:06.2]} 33... Be5 {[%clk 0:01:12.5]} 0-1

[Event "Early-Titled-Tuesday-Blitz-February-27-2024"]
[Site "Chess.com"]
[Date "2024.02.27"]
[Round "2"]
[White "Elsa167"]
[Black "giomar27"]
[Result "1-0"]
[WhiteElo "2877"]
[BlackElo "2424"]
[TimeControl "180+1"]
[EndTime "8:15:17 PST"]
[Termination "Elsa167 won by checkmate"]

1. f4 {[%clk 0:03:00.9]} 1... g6 {[%clk 0:02:56.6]} 2. g3 {[%clk 0:03:00.9]}
2... Bg7 {[%clk 0:02:54.9]} 3. Bg2 {[%clk 0:03:01.2]} 3... d5 {[%clk 0:02:55.1]}
4. Nf3 {[%clk 0:03:01.5]} 4... c5 {[%clk 0:02:50.6]} 5. O-O {[%clk 0:03:01.7]}
5... Nc6 {[%clk 0:02:48.9]} 6. d3 {[%clk 0:03:02.1]} 6... Nf6 {[%clk 0:02:42]}
7. Qe1 {[%clk 0:03:01.6]} 7... O-O {[%clk 0:02:40.4]} 8. e4 {[%clk 0:03:00.5]}
8... dxe4 {[%clk 0:02:25]} 9. dxe4 {[%clk 0:03:01.4]} 9... e5 {[%clk 0:02:24.2]}
10. f5 {[%clk 0:02:52.6]} 10... gxf5 {[%clk 0:02:03.2]} 11. Nh4 {[%clk
0:02:52.6]} 11... fxe4 {[%clk 0:01:53.8]} 12. Nc3 {[%clk 0:02:52.1]} 12... Nd4
{[%clk 0:01:47.8]} 13. Bg5 {[%clk 0:02:29.3]} 13... Nxc2 {[%clk 0:01:39.6]} 14.
Qe2 {[%clk 0:01:43.3]} 14... Nxa1 {[%clk 0:01:33.8]} 15. Nxe4 {[%clk 0:01:37.4]}
15... Qd4+ {[%clk 0:01:31.3]} 16. Be3 {[%clk 0:01:37.4]} 16... Bg4 {[%clk
0:01:20.7]} 17. Nxf6+ {[%clk 0:01:20.7]} 17... Bxf6 {[%clk 0:01:18.5]} 18. Qf2
{[%clk 0:01:20.9]} 18... Qd8 {[%clk 0:01:10.2]} 19. Nf5 {[%clk 0:01:19.6]} 19...
Bxf5 {[%clk 0:01:07.5]} 20. Qxf5 {[%clk 0:01:20.5]} 20... Bg7 {[%clk 0:01:03]}
21. Be4 {[%clk 0:01:18]} 21... Re8 {[%clk 0:00:52.9]} 22. Qxf7+ {[%clk
0:01:09.4]} 22... Kh8 {[%clk 0:00:52.9]} 23. Qf5 {[%clk 0:01:10]} 23... Rf8
{[%clk 0:00:32.9]} 24. Qxh7# {[%clk 0:01:10.1]} 1-0

[Event "Early-Titled-Tuesday-Blitz-February-27-2024"]
[Site "Chess.com"]
[Date "2024.02.27"]
[Round "2"]
[White "Fighter008"]
[Black "Chernov_Alexander_A"]
[Result "1-0"]
[WhiteElo "2531"]
[BlackElo "2288"]
[TimeControl "180+1"]
[EndTime "8:15:17 PST"]
[Termination "Fighter008 won by resignation"]

1. b3 {[%clk 0:03:00.9]} 1... e5 {[%clk 0:02:59.1]} 2. Bb2 {[%clk 0:03:01.1]}
2... Nc6 {[%clk 0:02:59.2]} 3. g3 {[%clk 0:03:00.9]} 3... Nf6 {[%clk 0:02:59]}
4. Bg2 {[%clk 0:03:01.2]} 4... d5 {[%clk 0:02:58.8]} 5. d3 {[%clk 0:03:00.8]}
5... h5 {[%clk 0:02:57.4]} 6. Nf3 {[%clk 0:02:58.2]} 6... Bd6 {[%clk 0:02:55.7]}
7. Nbd2 {[%clk 0:02:53.1]} 7... Qe7 {[%clk 0:02:45.3]} 8. e4 {[%clk 0:02:51.9]}
8... dxe4 {[%clk 0:02:42.9]} 9. dxe4 {[%clk 0:02:50.9]} 9... Bg4 {[%clk
0:02:34]} 10. h3 {[%clk 0:02:45.7]} 10... Be6 {[%clk 0:02:31.9]} 11. Qe2 {[%clk
0:02:43.9]} 11... O-O-O {[%clk 0:02:29.9]} 12. O-O {[%clk 0:02:42.4]} 12... h4
{[%clk 0:02:19.8]} 13. Nxh4 {[%clk 0:02:34.5]} 13... g5 {[%clk 0:02:14.2]} 14.
Nf5 {[%clk 0:02:33.7]} 14... Bxf5 {[%clk 0:02:13.5]} 15. exf5 {[%clk 0:02:34.6]}
15... Nb8 {[%clk 0:01:50.6]} 16. Nc4 {[%clk 0:02:30.8]} 16... Nbd7 {[%clk
0:01:49.7]} 17. a4 {[%clk 0:02:27.2]} 17... e4 {[%clk 0:01:35.4]} 18. Rad1
{[%clk 0:02:23.4]} 18... Bc5 {[%clk 0:01:22]} 19. Ne3 {[%clk 0:02:19.9]} 19...
Ne5 {[%clk 0:01:19.8]} 20. Nc4 {[%clk 0:02:09.1]} 20... Nxc4 {[%clk 0:01:10.5]}
21. Qxc4 {[%clk 0:02:09]} 21... e3 {[%clk 0:01:10.1]} 22. Rxd8+ {[%clk
0:02:08.2]} 22... Rxd8 {[%clk 0:01:06.2]} 23. Bxf6 {[%clk 0:02:08.1]} 23...
exf2+ {[%clk 0:01:05]} 24. Kh2 {[%clk 0:02:07.7]} 24... Qd6 {[%clk 0:00:40.9]}
25. Bxd8 {[%clk 0:02:04]} 25... Kxd8 {[%clk 0:00:40.2]} 26. Qd3 {[%clk
0:02:02.9]} 26... Ke7 {[%clk 0:00:35.9]} 27. Qxd6+ {[%clk 0:02:02.1]} 27... cxd6
{[%clk 0:00:35.6]} 28. Rd1 {[%clk 0:02:02.8]} 28... b6 {[%clk 0:00:32.9]} 29.
Bf1 {[%clk 0:02:03.4]} 29... Kf6 {[%clk 0:00:32]} 30. Kg2 {[%clk 0:02:04.3]}
30... Kxf5 {[%clk 0:00:30]} 31. Bc4 {[%clk 0:02:00.8]} 31... f6 {[%clk
0:00:29.1]} 32. Kf3 {[%clk 0:02:00.4]} 32... Ke5 {[%clk 0:00:27.2]} 33. c3
{[%clk 0:02:00.5]} 33... f5 {[%clk 0:00:25.9]} 34. b4 {[%clk 0:02:00.1]} 1-0

[Event "Early-Titled-Tuesday-Blitz-February-27-2024"]
[Site "Chess.com"]
[Date "2024.02.27"]
[Round "2"]
[White "RedFirePanda"]
[Black "Kezin_Roman"]
[Result "0-1"]
[WhiteElo "2547"]
[BlackElo "2785"]
[TimeControl "180+1"]
[EndTime "8:15:26 PST"]
[Termination "Kezin_Roman won by resignation"]

1. d4 {[%clk 0:02:58.3]} 1... g6 {[%clk 0:02:59.7]} 2. Bf4 {[%clk 0:02:57.5]}
2... Bg7 {[%clk 0:02:59.3]} 3. c3 {[%clk 0:02:57.9]} 3... d6 {[%clk 0:02:51.1]}
4. e3 {[%clk 0:02:57.4]} 4... Nf6 {[%clk 0:02:49.7]} 5. Nf3 {[%clk 0:02:54.2]}
5... O-O {[%clk 0:02:46.3]} 6. h3 {[%clk 0:02:54.3]} 6... c5 {[%clk 0:02:46.7]}
7. Nbd2 {[%clk 0:02:51.6]} 7... cxd4 {[%clk 0:02:28.9]} 8. exd4 {[%clk
0:02:52.5]} 8... Nc6 {[%clk 0:02:29.5]} 9. Bd3 {[%clk 0:02:50.7]} 9... e5 {[%clk
0:02:28]} 10. Bh2 {[%clk 0:02:30.2]} 10... e4 {[%clk 0:02:25.4]} 11. Nxe4 {[%clk
0:02:08.8]} 11... Nxe4 {[%clk 0:02:25.4]} 12. Bxe4 {[%clk 0:02:03.7]} 12... Re8
{[%clk 0:02:25.4]} 13. O-O {[%clk 0:01:51.7]} 13... Rxe4 {[%clk 0:02:25]} 14. d5
{[%clk 0:01:51.9]} 14... Na5 {[%clk 0:02:13.4]} 15. Rc1 {[%clk 0:01:16.1]} 15...
Nc4 {[%clk 0:02:12.3]} 16. b3 {[%clk 0:01:11.6]} 16... Nb6 {[%clk 0:02:11.6]}
17. a4 {[%clk 0:01:06.7]} 17... Qf6 {[%clk 0:02:03.8]} 18. a5 {[%clk 0:00:59.4]}
18... Nd7 {[%clk 0:02:03.5]} 19. Nd2 {[%clk 0:00:57.8]} 19... Re8 {[%clk
0:02:01.8]} 20. Nc4 {[%clk 0:00:58]} 20... Ne5 {[%clk 0:02:01.4]} 21. Bxe5
{[%clk 0:00:51.4]} 21... dxe5 {[%clk 0:02:02.3]} 22. d6 {[%clk 0:00:50.9]} 22...
Bd7 {[%clk 0:02:02.2]} 23. Ne3 {[%clk 0:00:47.8]} 23... Bc6 {[%clk 0:02:01.8]}
24. b4 {[%clk 0:00:45.3]} 24... Rad8 {[%clk 0:02:01]} 25. Nc4 {[%clk 0:00:27.1]}
25... Qe6 {[%clk 0:01:58.1]} 26. Ne3 {[%clk 0:00:09.2]} 26... Rxd6 {[%clk
0:01:57.9]} 27. Qc2 {[%clk 0:00:09]} 27... Red8 {[%clk 0:01:57.7]} 28. c4 {[%clk
0:00:07.1]} 28... Rd2 {[%clk 0:01:57.3]} 29. Qb3 {[%clk 0:00:06]} 29... R8d3
{[%clk 0:01:56.9]} 30. Qb1 {[%clk 0:00:04.6]} 30... Rxe3 {[%clk 0:01:55.6]} 31.
fxe3 {[%clk 0:00:04.6]} 31... Rxg2+ {[%clk 0:01:55.4]} 0-1

[Event "Early-Titled-Tuesday-Blitz-February-27-2024"]
[Site "Chess.com"]
[Date "2024.02.27"]
[Round "2"]
[White "DonJuanEGenaro"]
[Black "Savagelittlemole"]
[Result "0-1"]
[WhiteElo "2008"]
[BlackElo "2452"]
[TimeControl "180+1"]
[EndTime "8:15:26 PST"]
[Termination "Savagelittlemole won on time"]

1. d4 {[%clk 0:03:00]} 1... Nf6 {[%clk 0:02:58.1]} 2. Nf3 {[%clk 0:02:59.2]}
2... c5 {[%clk 0:02:58.8]} 3. c3 {[%clk 0:02:57.5]} 3... g6 {[%clk 0:02:58.7]}
4. Bf4 {[%clk 0:02:55.6]} 4... Bg7 {[%clk 0:02:59.2]} 5. e3 {[%clk 0:02:55.1]}
5... O-O {[%clk 0:02:59.8]} 6. Nbd2 {[%clk 0:02:54.1]} 6... d5 {[%clk
0:02:59.9]} 7. h3 {[%clk 0:02:53.6]} 7... Nbd7 {[%clk 0:02:58.4]} 8. Be2 {[%clk
0:02:52.5]} 8... Re8 {[%clk 0:02:56.4]} 9. O-O {[%clk 0:02:49.6]} 9... b6 {[%clk
0:02:54]} 10. Ne5 {[%clk 0:02:43.5]} 10... Bb7 {[%clk 0:02:50.2]} 11. Bb5 {[%clk
0:02:37.5]} 11... a6 {[%clk 0:02:47.7]} 12. Bd3 {[%clk 0:02:23.6]} 12... Nh5
{[%clk 0:02:43.6]} 13. Nxd7 {[%clk 0:02:06.6]} 13... Nxf4 {[%clk 0:02:42.6]} 14.
exf4 {[%clk 0:02:06]} 14... Qxd7 {[%clk 0:02:42.8]} 15. Nf3 {[%clk 0:02:05]}
15... f6 {[%clk 0:02:40.3]} 16. Kh2 {[%clk 0:02:02.9]} 16... cxd4 {[%clk
0:02:38.9]} 17. cxd4 {[%clk 0:01:58.8]} 17... Rac8 {[%clk 0:02:36.3]} 18. Qe2
{[%clk 0:01:56.5]} 18... Qd6 {[%clk 0:02:35.5]} 19. g3 {[%clk 0:01:54.8]} 19...
e5 {[%clk 0:02:26.5]} 20. fxe5 {[%clk 0:01:45.4]} 20... fxe5 {[%clk 0:02:27.4]}
21. dxe5 {[%clk 0:01:43.9]} 21... Bxe5 {[%clk 0:02:27.4]} 22. Nxe5 {[%clk
0:01:42.1]} 22... Rxe5 {[%clk 0:02:28.3]} 23. Qg4 {[%clk 0:01:36.5]} 23... d4
{[%clk 0:02:22.6]} 24. b3 {[%clk 0:01:31.3]} 24... b5 {[%clk 0:02:17.2]} 25.
Rac1 {[%clk 0:01:24.8]} 25... Rf8 {[%clk 0:02:17.1]} 26. Rc2 {[%clk 0:01:18.6]}
26... Bf3 {[%clk 0:02:15.4]} 27. Qh4 {[%clk 0:01:07.2]} 27... Rh5 {[%clk
0:02:10.5]} 28. Qxh5 {[%clk 0:00:55.7]} 28... gxh5 {[%clk 0:02:09.9]} 29. Re1
{[%clk 0:00:49.9]} 29... h4 {[%clk 0:02:07]} 30. a4 {[%clk 0:00:44.3]} 30...
hxg3+ {[%clk 0:02:07.1]} 31. fxg3 {[%clk 0:00:43.6]} 31... Bd5 {[%clk 0:02:02]}
32. axb5 {[%clk 0:00:38.6]} 32... axb5 {[%clk 0:02:02.9]} 33. Bxb5 {[%clk
0:00:28.1]} 33... Qb4 {[%clk 0:02:02.9]} 0-1